[Event "Early-Titled-Tuesday-Blitz-February-27-2024"]
[Site "Chess.com"]
[Date "2024.02.27"]
[Round "5"]
[White "aRk_iN"]
[Black "cthake"]
[Result "1-0"]
[WhiteElo "2242"]
[BlackElo "1818"]
[TimeControl "180+1"]
[EndTime "8:54:13 PST"]
[Termination "aRk_iN won by resignation"]

1. d4 {[%clk 0:03:00.9]} 1... Nf6 {[%clk 0:02:55.3]} 2. Bg5 {[%clk 0:03:00.2]}
2... c5 {[%clk 0:02:52.7]} 3. d5 {[%clk 0:02:59.9]} 3... d6 {[%clk 0:02:52.6]}
4. Nc3 {[%clk 0:02:59.5]} 4... g6 {[%clk 0:02:52.4]} 5. e4 {[%clk 0:02:59.4]}
5... Bg7 {[%clk 0:02:52]} 6. Nf3 {[%clk 0:02:59]} 6... O-O {[%clk 0:02:50.6]} 7.
Be2 {[%clk 0:02:57.7]} 7... e6 {[%clk 0:02:50.8]} 8. O-O {[%clk 0:02:43.3]} 8...
exd5 {[%clk 0:02:50.9]} 9. exd5 {[%clk 0:02:30.5]} 9... Re8 {[%clk 0:02:46]} 10.
Nd2 {[%clk 0:02:28.3]} 10... a6 {[%clk 0:02:44.8]} 11. a4 {[%clk 0:02:27.9]}
11... Nbd7 {[%clk 0:02:37.4]} 12. Nc4 {[%clk 0:02:08.9]} 12... Ne5 {[%clk
0:02:35.6]} 13. Nxe5 {[%clk 0:01:46.4]} 13... Rxe5 {[%clk 0:02:35.5]} 14. Bf4
{[%clk 0:01:46.8]} 14... Re8 {[%clk 0:02:30.9]} 15. h3 {[%clk 0:01:45.4]} 15...
h5 {[%clk 0:02:28.9]} 16. Bc4 {[%clk 0:01:42.5]} 16... Bf5 {[%clk 0:02:27.1]}
17. f3 {[%clk 0:01:35.3]} 17... Re7 {[%clk 0:02:02.8]} 18. Qd2 {[%clk
0:01:32.3]} 18... Kh7 {[%clk 0:02:00.6]} 19. Rfe1 {[%clk 0:01:30.2]} 19... Rxe1+
{[%clk 0:01:57.4]} 20. Rxe1 {[%clk 0:01:29.7]} 20... Qd7 {[%clk 0:01:58]} 21. g4
{[%clk 0:01:03.9]} 21... hxg4 {[%clk 0:01:52.6]} 22. hxg4 {[%clk 0:01:04.8]}
22... Bxg4 {[%clk 0:01:43.6]} 23. fxg4 {[%clk 0:01:04.8]} 23... Qxg4+ {[%clk
0:01:44.2]} 24. Kh1 {[%clk 0:00:59.8]} 24... Nh5 {[%clk 0:01:27.9]} 25. Rf1
{[%clk 0:00:50.7]} 25... Qh3+ {[%clk 0:01:17.9]} 26. Qh2 {[%clk 0:00:42.2]}
26... Qg4 {[%clk 0:01:13.8]} 27. Be2 {[%clk 0:00:34.9]} 27... Qf5 {[%clk
0:00:55.1]} 28. Bxd6 {[%clk 0:00:24.6]} 28... Qxc2 {[%clk 0:00:44.1]} 29. Bxh5
{[%clk 0:00:20.9]} 29... Qxh2+ {[%clk 0:00:37.1]} 30. Kxh2 {[%clk 0:00:21.8]}
30... gxh5 {[%clk 0:00:37.4]} 31. Rxf7 {[%clk 0:00:21.9]} 31... Kg6 {[%clk
0:00:37.6]} 32. Rxb7 {[%clk 0:00:22]} 32... Rd8 {[%clk 0:00:35.5]} 33. Rb6
{[%clk 0:00:21.4]} 33... Kf5 {[%clk 0:00:33.4]} 34. Rxa6 {[%clk 0:00:21.7]}
34... Rxd6 {[%clk 0:00:32.9]} 35. Rxd6 {[%clk 0:00:20.7]} 35... Be5+ {[%clk
0:00:33.2]} 36. Kh3 {[%clk 0:00:21.1]} 36... Bxd6 {[%clk 0:00:33.4]} 37. Kh4
{[%clk 0:00:21.3]} 37... Ke5 {[%clk 0:00:32.8]} 38. Kxh5 {[%clk 0:00:20.6]}
38... Kd4 {[%clk 0:00:33]} 39. a5 {[%clk 0:00:20.1]} 39... Kc4 {[%clk
0:00:31.7]} 40. a6 {[%clk 0:00:20.2]} 40... Bb8 {[%clk 0:00:31.5]} 41. d6 {[%clk
0:00:18.6]} 41... Bxd6 {[%clk 0:00:24.4]} 42. a7 {[%clk 0:00:18.5]} 42... Be5
{[%clk 0:00:23.1]} 43. a8=Q {[%clk 0:00:18.4]} 43... Bxc3 {[%clk 0:00:22.9]} 44.
bxc3 {[%clk 0:00:18.9]} 44... Kxc3 {[%clk 0:00:23.8]} 45. Qa1+ {[%clk
0:00:18.8]} 45... Kd3 {[%clk 0:00:23.5]} 46. Qc1 {[%clk 0:00:18.9]} 46... c4
{[%clk 0:00:23.8]} 47. Kg4 {[%clk 0:00:19.6]} 47... c3 {[%clk 0:00:24.2]} 48.
Kf3 {[%clk 0:00:20.1]} 48... c2 {[%clk 0:00:24.6]} 49. Kf2 {[%clk 0:00:19.9]}
49... Kc3 {[%clk 0:00:24.8]} 50. Ke2 {[%clk 0:00:20.5]} 50... Kb3 {[%clk
0:00:24.7]} 51. Kd2 {[%clk 0:00:21]} 51... Ka2 {[%clk 0:00:23.6]} 52. Qxc2+
{[%clk 0:00:21.1]} 1-0

[Event "Early-Titled-Tuesday-Blitz-February-27-2024"]
[Site "Chess.com"]
[Date "2024.02.27"]
[Round "5"]
[White "NowInChess"]
[Black "HittingRookBottom"]
[Result "0-1"]
[WhiteElo "2247"]
[BlackElo "2020"]
[TimeControl "180+1"]
[EndTime "8:54:13 PST"]
[Termination "HittingRookBottom won on time"]

1. e4 {[%clk 0:03:00.9]} 1... c6 {[%clk 0:03:00.4]} 2. d4 {[%clk 0:03:00.7]}
2... d5 {[%clk 0:03:01]} 3. exd5 {[%clk 0:03:01.4]} 3... cxd5 {[%clk 0:03:01.9]}
4. c4 {[%clk 0:03:01.9]} 4... dxc4 {[%clk 0:03:01.9]} 5. Bxc4 {[%clk 0:03:01.1]}
5... Nf6 {[%clk 0:03:02.1]} 6. Nc3 {[%clk 0:02:59.8]} 6... e6 {[%clk 0:03:02.5]}
7. Nf3 {[%clk 0:02:59.1]} 7... Bb4 {[%clk 0:03:02.9]} 8. O-O {[%clk 0:02:56.3]}
8... O-O {[%clk 0:03:02.5]} 9. Bg5 {[%clk 0:02:53.3]} 9... h6 {[%clk 0:03:02.1]}
10. Bh4 {[%clk 0:02:51.6]} 10... Bd7 {[%clk 0:02:59.3]} 11. Qe2 {[%clk
0:02:45.7]} 11... Re8 {[%clk 0:02:51.6]} 12. Ne5 {[%clk 0:01:57.5]} 12... Nc6
{[%clk 0:02:14.9]} 13. Rad1 {[%clk 0:01:53]} 13... g5 {[%clk 0:02:08.9]} 14. Bg3
{[%clk 0:01:46.8]} 14... Bxc3 {[%clk 0:02:08.8]} 15. bxc3 {[%clk 0:01:45.2]}
15... Nd5 {[%clk 0:02:07.9]} 16. Qd3 {[%clk 0:01:31.9]} 16... Nxe5 {[%clk
0:01:31.3]} 17. Bxe5 {[%clk 0:01:21.3]} 17... Bc6 {[%clk 0:01:29.9]} 18. Bb3
{[%clk 0:01:08.4]} 18... Qe7 {[%clk 0:01:15.3]} 19. Bc2 {[%clk 0:01:03.5]} 19...
f5 {[%clk 0:01:14.3]} 20. g4 {[%clk 0:00:47.6]} 20... Rf8 {[%clk 0:01:13.9]} 21.
gxf5 {[%clk 0:00:46.8]} 21... exf5 {[%clk 0:01:12.5]} 22. Rfe1 {[%clk
0:00:36.6]} 22... Qd7 {[%clk 0:01:07.9]} 23. Qh3 {[%clk 0:00:32.2]} 23... Kh7
{[%clk 0:00:42.8]} 24. Bb1 {[%clk 0:00:17.5]} 24... Nf4 {[%clk 0:00:42.3]} 25.
Bxf4 {[%clk 0:00:17.4]} 25... gxf4 {[%clk 0:00:42.5]} 26. Kf1 {[%clk 0:00:10.3]}
26... Bb5+ {[%clk 0:00:30.7]} 27. Bd3 {[%clk 0:00:09.6]} 27... Bxd3+ {[%clk
0:00:29.5]} 28. Rxd3 {[%clk 0:00:10]} 28... Rf6 {[%clk 0:00:28]} 29. Re5 {[%clk
0:00:08.1]} 29... Raf8 {[%clk 0:00:27.6]} 30. Rd1 {[%clk 0:00:05]} 30... Qc6
{[%clk 0:00:25.8]} 31. Qg2 {[%clk 0:00:02.6]} 31... Qxg2+ {[%clk 0:00:25.4]} 32.
Kxg2 {[%clk 0:00:02.4]} 32... Rg8+ {[%clk 0:00:26.3]} 33. Kf3 {[%clk 0:00:02.7]}
33... Rc6 {[%clk 0:00:19.6]} 34. Rc1 {[%clk 0:00:03]} 34... Kg6 {[%clk
0:00:17.5]} 35. Kxf4 {[%clk 0:00:03.1]} 35... Kf6 {[%clk 0:00:18]} 36. c4 {[%clk
0:00:02.2]} 36... Rg4+ {[%clk 0:00:18.2]} 37. Kf3 {[%clk 0:00:01.6]} 37... Rd6
{[%clk 0:00:18.6]} 38. Rd5 {[%clk 0:00:01.4]} 38... Rxd4 {[%clk 0:00:18.2]} 0-1

[Event "Early-Titled-Tuesday-Blitz-February-27-2024"]
[Site "Chess.com"]
[Date "2024.02.27"]
[Round "5"]
[White "ReinisUz"]
[Black "As0nchess"]
[Result "0-1"]
[WhiteElo "2381"]
[BlackElo "2537"]
[TimeControl "180+1"]
[EndTime "8:54:16 PST"]
[Termination "As0nchess won by checkmate"]

1. c4 {[%clk 0:03:00.9]} 1... c5 {[%clk 0:02:57.8]} 2. Nc3 {[%clk 0:02:59.9]}
2... Nc6 {[%clk 0:02:57.5]} 3. g3 {[%clk 0:03:00.6]} 3... g6 {[%clk 0:02:57.6]}
4. Bg2 {[%clk 0:03:00.8]} 4... Bg7 {[%clk 0:02:58.2]} 5. e4 {[%clk 0:03:01]}
5... d6 {[%clk 0:02:58.4]} 6. Nge2 {[%clk 0:03:01.1]} 6... h5 {[%clk 0:02:57.1]}
7. h4 {[%clk 0:03:00.7]} 7... Nh6 {[%clk 0:02:54.4]} 8. O-O {[%clk 0:03:00.9]}
8... Ng4 {[%clk 0:02:54]} 9. d3 {[%clk 0:03:00.9]} 9... e6 {[%clk 0:02:54.1]}
10. f3 {[%clk 0:02:59.1]} 10... Nge5 {[%clk 0:02:53.7]} 11. Kh2 {[%clk
0:02:57.3]} 11... b6 {[%clk 0:02:50.5]} 12. Rb1 {[%clk 0:02:56]} 12... Bb7
{[%clk 0:02:50.4]} 13. a3 {[%clk 0:02:55.6]} 13... Qe7 {[%clk 0:02:47.2]} 14. b4
{[%clk 0:02:55.5]} 14... f6 {[%clk 0:02:45.8]} 15. Be3 {[%clk 0:02:49.4]} 15...
g5 {[%clk 0:02:44.3]} 16. Qd2 {[%clk 0:02:32.8]} 16... gxh4 {[%clk 0:02:42.8]}
17. gxh4 {[%clk 0:02:33.7]} 17... O-O-O {[%clk 0:02:36.6]} 18. Bh3 {[%clk
0:02:27]} 18... Kb8 {[%clk 0:02:34.1]} 19. Bf4 {[%clk 0:02:06.9]} 19... Nd4
{[%clk 0:02:30.5]} 20. Nxd4 {[%clk 0:02:03.4]} 20... cxd4 {[%clk 0:02:31.1]} 21.
Ne2 {[%clk 0:02:03.9]} 21... f5 {[%clk 0:02:30.5]} 22. Bg5 {[%clk 0:01:50.3]}
22... Bf6 {[%clk 0:02:29.2]} 23. Nxd4 {[%clk 0:01:39.7]} 23... Rdg8 {[%clk
0:02:21]} 24. f4 {[%clk 0:01:30.1]} 24... Ng4+ {[%clk 0:02:19.9]} 25. Bxg4
{[%clk 0:01:30.5]} 25... hxg4 {[%clk 0:02:20]} 26. Kg3 {[%clk 0:01:21.6]} 26...
fxe4 {[%clk 0:02:19]} 27. dxe4 {[%clk 0:01:14.1]} 27... Bxg5 {[%clk 0:02:17.9]}
28. fxg5 {[%clk 0:01:13]} 28... Bxe4 {[%clk 0:02:13.3]} 29. Rbe1 {[%clk
0:01:05]} 29... Bb7 {[%clk 0:02:12.2]} 30. Nb5 {[%clk 0:00:54.5]} 30... Rd8
{[%clk 0:01:57.7]} 31. Qf4 {[%clk 0:00:51.6]} 31... e5 {[%clk 0:01:49.1]} 32.
Qxg4 {[%clk 0:00:51.6]} 32... a6 {[%clk 0:01:40.3]} 33. Nd4 {[%clk 0:00:46.3]}
33... Rc8 {[%clk 0:01:37.8]} 34. Nf5 {[%clk 0:00:39.2]} 34... Qe6 {[%clk
0:01:37.6]} 35. Ne3 {[%clk 0:00:34.4]} 35... Qe7 {[%clk 0:01:32]} 36. Rf6 {[%clk
0:00:33.2]} 36... b5 {[%clk 0:01:28.8]} 37. Ref1 {[%clk 0:00:23.9]} 37... bxc4
{[%clk 0:01:12.7]} 38. Rf7 {[%clk 0:00:23.2]} 38... Qd8 {[%clk 0:01:13.1]} 39.
Nxc4 {[%clk 0:00:20.1]} 39... Bd5 {[%clk 0:01:04.6]} 40. Na5 {[%clk 0:00:12.7]}
40... Qb6 {[%clk 0:00:56.5]} 41. R7f2 {[%clk 0:00:06.5]} 41... Qe3+ {[%clk
0:00:50]} 42. Kh2 {[%clk 0:00:06.2]} 42... Rcg8 {[%clk 0:00:43.3]} 43. Re2
{[%clk 0:00:03.1]} 43... Qxg5 {[%clk 0:00:41.4]} 44. Qxg5 {[%clk 0:00:02.9]}
44... Rxg5 {[%clk 0:00:42.3]} 45. Rf6 {[%clk 0:00:02.7]} 45... Rxh4# {[%clk
0:00:41.6]} 0-1

[Event "Early-Titled-Tuesday-Blitz-February-27-2024"]
[Site "Chess.com"]
[Date "2024.02.27"]
[Round "5"]
[White "EdmundPlayer"]
[Black "Savagelittlemole"]
[Result "1/2-1/2"]
[WhiteElo "2273"]
[BlackElo "2441"]
[TimeControl "180+1"]
[EndTime "8:54:16 PST"]
[Termination "Game drawn by repetition"]

1. Nf3 {[%clk 0:02:53.8]} 1... c5 {[%clk 0:02:59.1]} 2. c4 {[%clk 0:02:49.8]}
2... Nf6 {[%clk 0:02:59]} 3. Nc3 {[%clk 0:02:49.6]} 3... g6 {[%clk 0:02:59.4]}
4. d4 {[%clk 0:02:46.3]} 4... cxd4 {[%clk 0:02:59.4]} 5. Nxd4 {[%clk 0:02:47.1]}
5... Bg7 {[%clk 0:03:00]} 6. e4 {[%clk 0:02:38.5]} 6... O-O {[%clk 0:02:58.9]}
7. Be2 {[%clk 0:02:37.1]} 7... Nc6 {[%clk 0:02:58.9]} 8. Be3 {[%clk 0:02:36.8]}
8... e6 {[%clk 0:02:53]} 9. O-O {[%clk 0:02:33.1]} 9... d5 {[%clk 0:02:52.4]}
10. exd5 {[%clk 0:02:19.2]} 10... exd5 {[%clk 0:02:52]} 11. Nxc6 {[%clk
0:02:18.9]} 11... bxc6 {[%clk 0:02:51.5]} 12. cxd5 {[%clk 0:02:18.5]} 12... Nxd5
{[%clk 0:02:43.8]} 13. Nxd5 {[%clk 0:02:18.1]} 13... Qxd5 {[%clk 0:02:42.3]} 14.
Qxd5 {[%clk 0:02:16.7]} 14... cxd5 {[%clk 0:02:43.2]} 15. Bf3 {[%clk 0:02:05.2]}
15... Be6 {[%clk 0:02:42.4]} 16. Rad1 {[%clk 0:02:03.3]} 16... Rfd8 {[%clk
0:02:33.4]} 17. Bd4 {[%clk 0:02:02.5]} 17... Rab8 {[%clk 0:02:28.7]} 18. b3
{[%clk 0:01:53.7]} 18... a5 {[%clk 0:02:28.5]} 19. Bxg7 {[%clk 0:01:49.9]} 19...
Kxg7 {[%clk 0:02:28.4]} 20. Rd4 {[%clk 0:01:50.8]} 20... Rb4 {[%clk 0:02:27.5]}
21. Rfd1 {[%clk 0:01:50]} 21... Kf6 {[%clk 0:02:22.4]} 22. Rxb4 {[%clk
0:00:54.7]} 22... axb4 {[%clk 0:02:23.3]} 23. Rd4 {[%clk 0:00:53.9]} 23... Rb8
{[%clk 0:02:23.1]} 24. Kf1 {[%clk 0:00:48.9]} 24... Ke5 {[%clk 0:02:23.3]} 25.
Rd2 {[%clk 0:00:48.8]} 25... d4 {[%clk 0:02:09.4]} 26. g3 {[%clk 0:00:46.9]}
26... Rc8 {[%clk 0:02:07.4]} 27. Be2 {[%clk 0:00:33.6]} 27... Rc1+ {[%clk
0:02:02.4]} 28. Kg2 {[%clk 0:00:32.2]} 28... Bd5+ {[%clk 0:01:56]} 29. f3 {[%clk
0:00:31.5]} 29... g5 {[%clk 0:01:38.1]} 30. Kf2 {[%clk 0:00:28]} 30... Ra1
{[%clk 0:01:23.3]} 31. f4+ {[%clk 0:00:25.2]} 31... gxf4 {[%clk 0:01:22.1]} 32.
gxf4+ {[%clk 0:00:26.1]} 32... Kxf4 {[%clk 0:01:22.6]} 33. Rxd4+ {[%clk
0:00:26.5]} 33... Ke5 {[%clk 0:01:23.1]} 34. Rxb4 {[%clk 0:00:26.1]} 34... Rxa2
{[%clk 0:01:23]} 35. Ke3 {[%clk 0:00:26.7]} 35... Rb2 {[%clk 0:01:16.8]} 36. Rb5
{[%clk 0:00:19.8]} 36... Rxb3+ {[%clk 0:01:15.1]} 37. Rxb3 {[%clk 0:00:19.6]}
37... Bxb3 {[%clk 0:01:16]} 38. Bd3 {[%clk 0:00:19.8]} 38... h6 {[%clk
0:01:16.4]} 39. Bh7 {[%clk 0:00:19.2]} 39... f5 {[%clk 0:01:16.1]} 40. Kf3
{[%clk 0:00:18.3]} 40... Bd1+ {[%clk 0:01:13.6]} 41. Kg3 {[%clk 0:00:18.3]}
41... f4+ {[%clk 0:01:12.5]} 42. Kf2 {[%clk 0:00:18.4]} 42... Bg4 {[%clk
0:01:10.9]} 43. Bd3 {[%clk 0:00:18.1]} 43... Bf5 {[%clk 0:01:10.7]} 44. Bf1
{[%clk 0:00:18.3]} 44... Be4 {[%clk 0:01:09.3]} 45. Be2 {[%clk 0:00:18.4]} 45...
Kf5 {[%clk 0:01:09.2]} 46. Bf1 {[%clk 0:00:18]} 46... Kg5 {[%clk 0:01:09.5]} 47.
Bh3 {[%clk 0:00:14.8]} 47... h5 {[%clk 0:01:04.5]} 48. Bd7 {[%clk 0:00:14.3]}
48... f3 {[%clk 0:01:03.4]} 49. Bc8 {[%clk 0:00:12.3]} 49... Kf4 {[%clk
0:01:02.5]} 50. Bd7 {[%clk 0:00:12]} 50... Bb7 {[%clk 0:00:56.2]} 51. Be6 {[%clk
0:00:12]} 51... h4 {[%clk 0:00:55.8]} 52. Bd7 {[%clk 0:00:11.9]} 52... Bd5
{[%clk 0:00:55.1]} 53. Bc8 {[%clk 0:00:12]} 53... Bb3 {[%clk 0:00:54.4]} 54. Bd7
{[%clk 0:00:12.1]} 54... Bd5 {[%clk 0:00:49.7]} 55. Bc8 {[%clk 0:00:12.2]} 55...
Ke5 {[%clk 0:00:49.1]} 56. Bd7 {[%clk 0:00:12.3]} 56... Kf6 {[%clk 0:00:49.3]}
57. Bc8 {[%clk 0:00:12.6]} 57... Kg5 {[%clk 0:00:48.9]} 58. Bd7 {[%clk
0:00:12.6]} 58... Kf4 {[%clk 0:00:49.4]} 1/2-1/2

[Event "Early-Titled-Tuesday-Blitz-February-27-2024"]
[Site "Chess.com"]
[Date "2024.02.27"]
[Round "5"]
[White "dpopadic"]
[Black "GelmanAlexander"]
[Result "0-1"]
[WhiteElo "2347"]
[BlackElo "2716"]
[TimeControl "180+1"]
[EndTime "8:54:18 PST"]
[Termination "GelmanAlexander won on time"]

1. e4 {[%clk 0:02:59.6]} 1... c5 {[%clk 0:02:59.6]} 2. Nc3 {[%clk 0:02:58.9]}
2... e6 {[%clk 0:02:58.3]} 3. d3 {[%clk 0:02:58.4]} 3... Nc6 {[%clk 0:02:57.8]}
4. g4 {[%clk 0:02:58.1]} 4... h6 {[%clk 0:02:42.4]} 5. Bg2 {[%clk 0:02:58]} 5...
a6 {[%clk 0:02:35.7]} 6. Nh3 {[%clk 0:02:57.6]} 6... b5 {[%clk 0:02:35.3]} 7.
O-O {[%clk 0:02:57.1]} 7... Bb7 {[%clk 0:02:35.3]} 8. f4 {[%clk 0:02:56.8]} 8...
Nf6 {[%clk 0:02:26.4]} 9. e5 {[%clk 0:02:32.5]} 9... b4 {[%clk 0:02:16.3]} 10.
exf6 {[%clk 0:02:08.4]} 10... bxc3 {[%clk 0:02:16]} 11. bxc3 {[%clk 0:02:08]}
11... gxf6 {[%clk 0:02:12.5]} 12. Rb1 {[%clk 0:02:05.3]} 12... Rb8 {[%clk
0:02:11.1]} 13. Be3 {[%clk 0:02:02.9]} 13... Rg8 {[%clk 0:02:01.6]} 14. Kh1
{[%clk 0:02:00]} 14... Ba8 {[%clk 0:01:57.8]} 15. Qe2 {[%clk 0:01:56.5]} 15...
Rc8 {[%clk 0:01:51.2]} 16. Rg1 {[%clk 0:01:54.1]} 16... Qa5 {[%clk 0:01:46.4]}
17. Rb3 {[%clk 0:01:38.9]} 17... c4 {[%clk 0:01:41.9]} 18. dxc4 {[%clk
0:01:33.9]} 18... h5 {[%clk 0:01:30.9]} 19. g5 {[%clk 0:01:28.7]} 19... Qf5
{[%clk 0:01:23.6]} 20. Nf2 {[%clk 0:01:06.3]} 20... fxg5 {[%clk 0:01:11.2]} 21.
fxg5 {[%clk 0:01:05.6]} 21... Na5 {[%clk 0:01:07.8]} 22. Bxa8 {[%clk 0:00:41.1]}
22... Rxa8 {[%clk 0:01:05.4]} 23. Rbb1 {[%clk 0:00:39.9]} 23... Rc8 {[%clk
0:01:02.3]} 24. c5 {[%clk 0:00:38]} 24... Bxc5 {[%clk 0:01:00.1]} 25. Bxc5
{[%clk 0:00:36.7]} 25... Qxc5 {[%clk 0:01:00.2]} 26. Ne4 {[%clk 0:00:31.1]}
26... Qc6 {[%clk 0:01:00.3]} 27. Qg2 {[%clk 0:00:30.8]} 27... Ke7 {[%clk
0:00:52.4]} 28. h4 {[%clk 0:00:23.8]} 28... Nc4 {[%clk 0:00:49.7]} 29. Rbe1
{[%clk 0:00:20.9]} 29... f5 {[%clk 0:00:34.9]} 30. gxf6+ {[%clk 0:00:19.2]}
30... Kf7 {[%clk 0:00:32.8]} 31. Ng5+ {[%clk 0:00:19]} 31... Kxf6 {[%clk
0:00:31.2]} 32. Rgf1+ {[%clk 0:00:18.2]} 32... Ke7 {[%clk 0:00:31]} 33. Rf7+
{[%clk 0:00:15.2]} 33... Ke8 {[%clk 0:00:31.1]} 34. Qxc6 {[%clk 0:00:11.3]}
34... Rxc6 {[%clk 0:00:31.2]} 35. Rh7 {[%clk 0:00:08.9]} 35... Rf8 {[%clk
0:00:28.9]} 36. Rd1 {[%clk 0:00:06.9]} 36... Ne5 {[%clk 0:00:25.6]} 37. Rb1
{[%clk 0:00:04.6]} 37... Rc8 {[%clk 0:00:21.7]} 38. Ne4 {[%clk 0:00:04]} 38...
Nf7 {[%clk 0:00:14.3]} 39. Rxh5 {[%clk 0:00:02.6]} 39... Rc4 {[%clk 0:00:12.9]}
0-1

[Event "Early-Titled-Tuesday-Blitz-February-27-2024"]
[Site "Chess.com"]
[Date "2024.02.27"]
[Round "5"]
[White "Anton_Demchenko"]
[Black "Yurovskykh_Oleksandr"]
[Result "1-0"]
[WhiteElo "2910"]
[BlackElo "2681"]
[TimeControl "180+1"]
[EndTime "8:54:21 PST"]
[Termination "Anton_Demchenko won by checkmate"]

1. e4 {[%clk 0:03:00.9]} 1... e6 {[%clk 0:02:59.8]} 2. d3 {[%clk 0:03:00.2]}
2... c5 {[%clk 0:02:59.1]} 3. Nd2 {[%clk 0:03:00.9]} 3... Nc6 {[%clk 0:02:59.7]}
4. g3 {[%clk 0:03:00.4]} 4... Nf6 {[%clk 0:03:00.1]} 5. Bg2 {[%clk 0:03:01.1]}
5... Be7 {[%clk 0:02:59.9]} 6. Ngf3 {[%clk 0:02:58.8]} 6... d5 {[%clk
0:02:53.2]} 7. O-O {[%clk 0:02:59]} 7... O-O {[%clk 0:02:53.4]} 8. Re1 {[%clk
0:02:58.9]} 8... Qc7 {[%clk 0:02:49.3]} 9. Nf1 {[%clk 0:02:48.2]} 9... dxe4
{[%clk 0:02:44.3]} 10. dxe4 {[%clk 0:02:48.1]} 10... Rd8 {[%clk 0:02:44.8]} 11.
Bd2 {[%clk 0:02:44.9]} 11... b5 {[%clk 0:02:30.2]} 12. Qe2 {[%clk 0:02:37.6]}
12... Rb8 {[%clk 0:02:26]} 13. c3 {[%clk 0:02:23.8]} 13... c4 {[%clk 0:02:16.8]}
14. Bf4 {[%clk 0:02:08]} 14... e5 {[%clk 0:02:11.5]} 15. Bg5 {[%clk 0:02:08.6]}
15... h6 {[%clk 0:02:07.1]} 16. Bxf6 {[%clk 0:02:08.2]} 16... Bxf6 {[%clk
0:02:08]} 17. Ne3 {[%clk 0:02:06.9]} 17... Ne7 {[%clk 0:02:01.6]} 18. a4 {[%clk
0:02:05.9]} 18... a6 {[%clk 0:02:01.1]} 19. axb5 {[%clk 0:02:06.1]} 19... axb5
{[%clk 0:02:02]} 20. h4 {[%clk 0:02:00.3]} 20... h5 {[%clk 0:01:42.2]} 21. Ng5
{[%clk 0:01:53.1]} 21... g6 {[%clk 0:01:31.6]} 22. Qf3 {[%clk 0:01:17.5]} 22...
Kg7 {[%clk 0:01:02.1]} 23. Nh7 {[%clk 0:00:41.3]} 23... Ng8 {[%clk 0:00:46.9]}
24. Nd5 {[%clk 0:00:35]} 24... Qc6 {[%clk 0:00:32.8]} 25. Nhxf6 {[%clk
0:00:31.6]} 25... Nxf6 {[%clk 0:00:33.7]} 26. Ra7 {[%clk 0:00:31.3]} 26... Bg4
{[%clk 0:00:24.8]} 27. Qe3 {[%clk 0:00:31.9]} 27... Nh7 {[%clk 0:00:09.5]} 28.
Rea1 {[%clk 0:00:29.3]} 28... Rdc8 {[%clk 0:00:09.4]} 29. R1a6 {[%clk 0:00:20]}
29... Qc5 {[%clk 0:00:09.3]} 30. Qd2 {[%clk 0:00:14]} 30... Nf8 {[%clk
0:00:08.6]} 31. Qg5 {[%clk 0:00:12.9]} 31... Be6 {[%clk 0:00:08.5]} 32. Qxe5+
{[%clk 0:00:12.9]} 32... Kg8 {[%clk 0:00:07.2]} 33. Ne7+ {[%clk 0:00:12]} 33...
Kh7 {[%clk 0:00:05.5]} 34. Qf6 {[%clk 0:00:09.6]} 34... b4 {[%clk 0:00:04.3]}
35. Nxc8 {[%clk 0:00:09.5]} 35... Rxc8 {[%clk 0:00:03.9]} 36. Re7 {[%clk
0:00:07.3]} 36... bxc3 {[%clk 0:00:03.7]} 37. bxc3 {[%clk 0:00:08.2]} 37... Kg8
{[%clk 0:00:02.9]} 38. Raxe6 {[%clk 0:00:08.3]} 38... Nxe6 {[%clk 0:00:02]} 39.
Qxf7+ {[%clk 0:00:08.8]} 39... Kh8 {[%clk 0:00:02.6]} 40. Qh7# {[%clk
0:00:09.7]} 1-0

[Event "Early-Titled-Tuesday-Blitz-February-27-2024"]
[Site "Chess.com"]
[Date "2024.02.27"]
[Round "5"]
[White "IngOscarArdila"]
[Black "noblerone"]
[Result "1-0"]
[WhiteElo "2296"]
[BlackElo "2494"]
[TimeControl "180+1"]
[EndTime "8:54:21 PST"]
[Termination "IngOscarArdila won by resignation"]

1. d4 {[%clk 0:02:59.3]} 1... d5 {[%clk 0:02:56.2]} 2. c4 {[%clk 0:02:59.4]}
2... c6 {[%clk 0:02:55.6]} 3. e3 {[%clk 0:02:56.9]} 3... Nf6 {[%clk 0:02:55.5]}
4. Nc3 {[%clk 0:02:57.1]} 4... a6 {[%clk 0:02:55.2]} 5. Nf3 {[%clk 0:02:56.8]}
5... b5 {[%clk 0:02:53.6]} 6. cxd5 {[%clk 0:02:54.7]} 6... cxd5 {[%clk
0:02:54.5]} 7. Bd3 {[%clk 0:02:52.9]} 7... Bg4 {[%clk 0:02:55]} 8. h3 {[%clk
0:02:52.4]} 8... Bh5 {[%clk 0:02:54.7]} 9. O-O {[%clk 0:02:52]} 9... e6 {[%clk
0:02:53.1]} 10. a4 {[%clk 0:02:49.5]} 10... b4 {[%clk 0:02:53]} 11. Nb1 {[%clk
0:02:49.3]} 11... Ne4 {[%clk 0:02:46.2]} 12. Nbd2 {[%clk 0:02:48]} 12... f5
{[%clk 0:02:44.2]} 13. Be2 {[%clk 0:02:45.4]} 13... Bd6 {[%clk 0:02:43]} 14. Ne5
{[%clk 0:02:33.8]} 14... Bxe2 {[%clk 0:02:42.7]} 15. Qxe2 {[%clk 0:02:33.6]}
15... O-O {[%clk 0:02:42]} 16. Ndf3 {[%clk 0:02:18.8]} 16... Nd7 {[%clk
0:02:37.7]} 17. Nxd7 {[%clk 0:02:09.1]} 17... Qxd7 {[%clk 0:02:37.3]} 18. Bd2
{[%clk 0:02:09.4]} 18... Rfc8 {[%clk 0:02:28.7]} 19. Rfc1 {[%clk 0:02:08.3]}
19... Rxc1+ {[%clk 0:02:27.7]} 20. Rxc1 {[%clk 0:02:07.3]} 20... Qxa4 {[%clk
0:02:22.9]} 21. Qd3 {[%clk 0:01:50.4]} 21... Qd7 {[%clk 0:02:14.5]} 22. Qc2
{[%clk 0:01:47.7]} 22... a5 {[%clk 0:02:11.2]} 23. Ne5 {[%clk 0:01:40.9]} 23...
Bxe5 {[%clk 0:02:08.1]} 24. dxe5 {[%clk 0:01:41.8]} 24... h6 {[%clk 0:01:58.8]}
25. Be1 {[%clk 0:01:41.5]} 25... Qb7 {[%clk 0:01:48]} 26. f3 {[%clk 0:01:40.3]}
26... Ng5 {[%clk 0:01:46.1]} 27. Qc6 {[%clk 0:01:38.5]} 27... Qe7 {[%clk
0:01:24.9]} 28. Qxa8+ {[%clk 0:01:30.8]} 28... Kh7 {[%clk 0:01:16.6]} 29. Qxa5
{[%clk 0:01:27.4]} 29... b3 {[%clk 0:01:09]} 30. Bb4 {[%clk 0:01:19.4]} 30...
Qe8 {[%clk 0:01:06.6]} 31. Rc7 {[%clk 0:01:08.8]} 31... Qg6 {[%clk 0:01:04.8]}
32. Kh2 {[%clk 0:01:03.8]} 32... h5 {[%clk 0:01:00.4]} 33. Be1 {[%clk 0:00:51]}
33... Nf7 {[%clk 0:00:54.6]} 34. Qc3 {[%clk 0:00:45]} 34... Nh6 {[%clk
0:00:48.5]} 35. Qd4 {[%clk 0:00:42]} 35... Qe8 {[%clk 0:00:43.6]} 36. Bh4 {[%clk
0:00:35.9]} 36... Qb8 {[%clk 0:00:42.4]} 37. Qc3 {[%clk 0:00:31.5]} 37... Qe8
{[%clk 0:00:33.8]} 38. Bf6 {[%clk 0:00:30.4]} 38... Nf7 {[%clk 0:00:32]} 39. Bh4
{[%clk 0:00:26]} 39... Kh6 {[%clk 0:00:27.1]} 40. Qxb3 {[%clk 0:00:25.4]} 40...
g5 {[%clk 0:00:26.8]} 41. Bg3 {[%clk 0:00:24.7]} 41... h4 {[%clk 0:00:26.6]} 42.
Bf2 {[%clk 0:00:22.4]} 42... Kg6 {[%clk 0:00:26.6]} 43. f4 {[%clk 0:00:21.4]}
43... g4 {[%clk 0:00:26.3]} 44. Bxh4 {[%clk 0:00:20.5]} 44... gxh3 {[%clk
0:00:26.3]} 45. gxh3 {[%clk 0:00:18.9]} 45... Qh8 {[%clk 0:00:26.7]} 46. Qc2
{[%clk 0:00:18.1]} 46... Qxh4 {[%clk 0:00:25.2]} 47. Qg2+ {[%clk 0:00:18.1]}
47... Kh6 {[%clk 0:00:15.6]} 48. Rxf7 {[%clk 0:00:17.5]} 1-0